bitfinex/quotes_SOLUSD_20250814
["timestamp","ask_amount","ask_price","bid_price","bid_amount"]
[1755150023931,15.10621557,207.32,207.31,36.86]
[1755150024427,15.81621557,207.32,207.31,36.86]
[1755150025003,15.81621557,207.32,207.31,106.18]
[1755150025632,48.02459812,207.32,207.31,69.32]
[1755150025803,22.02459812,207.32,207.31,69.32]
[1755150026011,22.02459812,207.32,207.31,106.18]
[1755150027721,41.10621557,207.26,207.25,0.03]
[1755150027909,48.02459812,207.26,207.25,34.69]
[1755150028630,51.286589,207.26,207.25,34.69]
[1755150029021,41.81621557,207.26,207.25,71.53]
[1755150029334,51.286589,207.26,207.25,71.53]
[1755150029927,41.81621557,207.26,207.25,71.53]
[1755150030127,41.81621557,207.26,207.25,36.87]
[1755150030808,41.10621557,207.26,207.25,36.87]
[1755150031834,15.10621557,207.26,207.25,36.87]
[1755150032339,25.236589,207.26,207.25,0.03]
[1755150032512,25.236589,207.26,207.25,36.87]
[1755150032831,51.236589,207.26,207.25,36.85]
[1755150033339,94.20621557,207.25,207.24,0.03]
[1755150033632,25.236589,207.25,207.24,0.03]
[1755150034630,25.236589,207.25,207.24,36.85]
[1755150035143,25.236589,207.25,207.24,106.21]
[1755150036914,15.76621557,207.25,207.24,106.21]
[1755150037115,25.236589,207.25,207.24,106.21]
[1755150037816,41.76621557,207.25,207.24,106.21]
[1755150038032,51.236589,207.25,207.24,106.21]
[1755150039117,41.76621557,207.25,207.24,106.21]
[1755150039321,51.236589,207.25,207.24,106.21]
[1755150039540,41.76621557,207.25,207.24,106.21]
[1755150039726,51.236589,207.25,207.24,106.21]
[1755150039922,41.10621557,207.25,207.24,106.21]
[1755150040547,51.236589,207.25,207.24,106.21]
[1755150040756,41.10621557,207.25,207.24,106.21]
[1755150044243,51.236589,207.25,207.24,106.19]
[1755150047949,25.236589,207.25,207.24,106.19]
[1755150048642,25.236589,207.25,207.24,34.68]
[1755150048833,94.20621557,207.23,207.22,97.27436443]
[1755150049040,104.336589,207.23,207.22,97.27436443]
[1755150049637,104.336589,207.23,207.22,134.03436443]
[1755150050761,101.08269712,207.23,207.22,134.03436443]
[1755150052537,104.62496953,207.23,207.22,110.26436443]
[1755150052737,101.08269712,207.23,207.22,110.26436443]
[1755150052955,104.62499956,207.23,207.22,110.26436443]
[1755150053156,15.10621557,207.2,207.07,0.68]
[1755150053361,15.10621557,207.12,207.07,0.68]
[1755150053565,21.32269712,207.09,207.08,36.74]
[1755150053854,15.10621557,207.09,207.08,37.42]
[1755150054832,32.21648155,207.15,207.08,37.42]
[1755150055044,21.32269712,207.14,207.09,70.04]
[1755150055241,21.32269712,207.14,207.1,37.42]
[1755150055475,21.32269712,207.14,207.1,36.74]
[1755150055653,21.32269712,207.14,207.11,0.68]
[1755150055853,21.32269712,207.14,207.12,36.74]
[1755150055854,15.10621557,207.14,207.12,36.74]
[1755150056247,15.10621557,207.14,207.13,0.68]
[1755150056938,15.10621557,207.14,207.12,36.74]
[1755150057136,15.10621557,207.14,207.12,37.42]
[1755150058164,15.10621557,207.14,207.12,36.74]
[1755150058547,21.32269712,207.14,207.13,36.72]
[1755150059289,15.76621557,207.14,207.13,36.72]
[1755150059571,15.10621557,207.14,207.13,36.72]
[1755150060347,15.10621557,207.18,207.13,37.44]
[1755150060551,41.10621557,207.18,207.14,0.72]
[1755150060793,41.10621557,207.16,207.15,36.72]
[1755150062234,15.10621557,207.16,207.15,37.44]
[1755150062439,133.4,207.25,207.15,37.44]
[1755150062665,133.4,207.25,207.16,0.72]
[1755150062864,15.10621557,207.24,207.16,0.72]
[1755150063067,41.10621557,207.24,207.16,0.72]
[1755150063962,6.21648155,207.28,207.16,0.72]
[1755150063963,15.10621557,207.28,207.16,0.72]
[1755150064346,0.06,207.29,207.16,0.72]
[1755150064576,15.10621557,207.27,207.16,0.72]
[1755150065277,15.16621557,207.29,207.16,0.72]
[1755150065663,15.10621557,207.25,207.16,0.72]
[1755150066384,0.06,207.29,207.18,26.0]
[1755150066589,0.06,207.29,207.22,26.0]
[1755150066802,0.06,207.3,207.26,26.0]
[1755150066962,0.06,207.31,207.27,37.4]
[1755150067162,0.06,207.31,207.28,0.72]
[1755150067857,0.06,207.31,207.27,36.68]
[1755150067858,15.16621557,207.31,207.27,36.68]
[1755150068060,15.10621557,207.29,207.27,36.68]
[1755150068305,15.76621557,207.28,207.27,36.68]
[1755150068473,21.98269712,207.28,207.27,36.68]
[1755150068683,0.06,207.31,207.27,36.68]
[1755150068878,0.06,207.31,207.28,0.72]
[1755150069185,0.06,207.31,207.29,0.72]
[1755150069356,0.06,207.31,207.27,36.68]
[1755150069560,0.06,207.31,207.27,37.4]
[1755150069790,0.06,207.31,207.28,0.72]
[1755150069967,0.06,207.31,207.27,36.68]
[1755150070167,0.06,207.31,207.29,0.72]
[1755150070584,0.06,207.31,207.27,36.68]
[1755150070762,0.06,207.31,207.3,0.72]
[1755150072570,0.06,207.31,207.3,37.38]
[1755150073874,0.06,207.31,207.3,36.66]
[1755150074067,0.06,207.31,207.3,37.38]
[1755150074274,0.06,207.33,207.3,37.38]
[1755150074590,0.06,207.33,207.31,0.72]
[1755150074972,0.06,207.33,207.32,69.36]
[1755150075278,0.06,207.33,207.32,70.08]
[1755150075987,0.06,207.38,207.32,35.4]
[1755150076183,0.06,207.38,207.33,0.72]
[1755150076381,0.06,207.38,207.34,36.62]
[1755150076588,0.06,207.38,207.35,0.72]
[1755150076772,0.06,207.38,207.34,36.62]
[1755150076979,0.06,207.38,207.36,0.72]
[1755150077987,0.06,207.38,207.34,36.62]
[1755150077988,0.72,207.38,207.34,36.62]
[1755150079389,0.66,207.37,207.3,0.72]
[1755150079699,15.10621557,207.36,207.31,36.6]
[1755150080001,24.56297244,207.34,207.32,36.6]
[1755150080296,15.10621557,207.34,207.33,36.6]
[1755150080904,15.76621557,207.34,207.33,36.6]
[1755150081075,25.22297244,207.34,207.33,36.58]
[1755150081275,51.22297244,207.34,207.33,36.58]
[1755150081576,25.22297244,207.34,207.33,36.58]
[1755150082289,15.10621557,207.26,207.18,0.72]
[1755150082498,15.10621557,207.24,207.18,0.72]
[1755150083794,15.10621557,207.24,207.19,36.58]
[1755150084096,15.10621557,207.24,207.19,37.3]
[1755150084874,15.10621557,207.22,207.19,36.58]
[1755150085090,15.10621557,207.22,207.2,69.32]
[1755150085891,15.76621557,207.21,207.2,69.32]
[1755150086097,15.10621557,207.21,207.2,105.9]
[1755150086280,15.76621557,207.21,207.2,105.9]
[1755150088091,15.76621557,207.21,207.2,71.24]
[1755150088587,0.66,207.28,207.2,37.3]
[1755150088778,15.10621557,207.27,207.2,37.3]
[1755150088978,9.45675687,207.31,207.21,0.72]
[1755150088979,0.66,207.31,207.21,0.72]
[1755150089179,0.72,207.33,207.21,0.72]
[1755150089882,15.10621557,207.32,207.21,0.72]
[1755150090980,15.10621557,207.32,207.23,26.0]
[1755150091188,15.10621557,207.32,207.24,0.71]
[1755150091385,15.10621557,207.32,207.25,36.56]
[1755150092205,79.1,207.31,207.26,0.71]
[1755150092415,79.1,207.31,207.27,0.71]
[1755150092599,79.1,207.31,207.25,36.56]
[1755150092795,15.10621557,207.3,207.25,36.56]
[1755150093120,104.33297244,207.3,207.26,36.54]
[1755150093307,0.67,207.29,207.26,36.54]
[1755150093490,15.10621557,207.27,207.26,36.54]
[1755150093805,15.77621557,207.27,207.26,36.54]
[1755150094003,15.77621557,207.29,207.26,36.54]
[1755150094218,24.56297244,207.27,207.26,36.54]
[1755150094594,15.10621557,207.27,207.26,36.54]
[1755150095114,15.10621557,207.27,207.26,105.9]
[1755150095417,15.77621557,207.27,207.26,105.9]
[1755150095710,15.77621557,207.27,207.26,69.36]
[1755150095896,25.23297244,207.27,207.26,69.36]
[1755150096222,15.77621557,207.27,207.26,105.9]
[1755150098191,51.23297244,207.27,207.26,69.36]
[1755150098422,51.23297244,207.27,207.26,105.88]
[1755150098591,25.23297244,207.27,207.26,105.88]
[1755150102091,28.77086891,207.27,207.26,105.88]
[1755150102496,79.1,207.21,207.2,0.03]
[1755150102792,25.23297244,207.21,207.2,34.71]
[1755150103332,15.77621557,207.21,207.2,34.71]
[1755150103619,41.10621557,207.18,207.17,0.03]
[1755150103806,41.10621557,207.18,207.17,71.21]
[1755150104117,41.77621557,207.18,207.17,71.21]
[1755150104308,51.23297244,207.18,207.17,71.21]
[1755150105122,51.23297244,207.18,207.17,105.89]
[1755150105614,41.10621557,207.18,207.17,105.89]
[1755150106694,15.10621557,207.18,207.17,105.89]
[1755150107417,15.10621557,207.18,207.17,106.6]
[1755150107605,15.10621557,207.18,207.17,105.89]
[1755150107997,15.10621557,207.18,207.17,106.6]
[1755150110023,15.10621557,207.18,207.17,71.21]
[1755150112313,15.10621557,207.18,207.17,36.53]
[1755150115037,15.10621557,207.18,207.17,105.89]
[1755150115614,26.0,207.21,207.17,105.89]
[1755150115615,15.10621557,207.21,207.17,106.6]
[1755150115852,15.10621557,207.21,207.17,105.89]
[1755150116020,15.10621557,207.21,207.18,0.71]
[1755150116843,15.10621557,207.21,207.19,0.71]
[1755150117039,15.10621557,207.21,207.2,36.46]
[1755150117229,0.06,207.23,207.2,37.17]
[1755150117433,0.06,207.23,207.2,36.46]
[1755150119539,0.67,207.22,207.2,36.46]
[1755150120020,0.06,207.23,207.2,36.46]
[1755150120444,15.10621557,207.22,207.2,36.46]
[1755150120817,41.10621557,207.22,207.2,36.46]
[1755150122042,0.06,207.25,207.21,0.72]
[1755150123038,0.06,207.25,207.22,0.72]
[1755150123244,0.06,207.25,207.23,0.72]
[1755150123429,0.06,207.25,207.2,62.46]
[1755150123430,0.06,207.25,207.24,37.16]
[1755150124029,0.06,207.25,207.24,36.44]
[1755150125050,0.06,207.25,207.24,105.8]
[1755150126655,41.82621557,207.25,207.24,69.36]
[1755150126954,41.16621557,207.25,207.24,105.78]
[1755150127164,41.82621557,207.25,207.24,105.78]
[1755150127442,51.28297244,207.25,207.24,105.78]
[1755150127649,41.82621557,207.25,207.24,105.78]
[1755150127828,41.16621557,207.25,207.24,105.78]
[1755150128851,51.28297244,207.25,207.24,69.36]
[1755150129155,51.28297244,207.25,207.24,105.76]
[1755150130242,41.82621557,207.25,207.24,105.76]
[1755150130561,51.28297244,207.25,207.24,105.76]
[1755150132868,41.82621557,207.25,207.24,105.76]
[1755150134567,41.16621557,207.25,207.24,105.76]
[1755150136364,41.82621557,207.25,207.24,105.76]
[1755150136544,51.28297244,207.25,207.24,105.76]
[1755150136738,41.82621557,207.25,207.24,105.76]
[1755150137060,54.84951321,207.25,207.24,105.74]
[1755150137232,54.85040021,207.25,207.24,105.74]
[1755150137638,41.10621557,207.21,207.2,0.03]
[1755150137838,54.13040021,207.21,207.2,36.41]
[1755150138137,54.79040021,207.21,207.2,36.41]
[1755150138862,54.79040021,207.21,207.2,0.03]
[1755150139158,54.79040021,207.21,207.2,36.41]
[1755150140470,41.10621557,207.18,207.17,0.03]
[1755150140683,54.78624899,207.18,207.17,0.03]
[1755150141040,15.10621557,207.17,207.15,0.03]
[1755150141241,58.85156363,207.18,206.96,0.72]
[1755150141242,15.10621557,207.03,206.96,0.72]
[1755150141465,15.10621557,206.99,206.96,0.72]
[1755150141643,9.45675687,207.06,206.97,36.36]
[1755150141846,15.10621557,207.01,206.98,0.72]
[1755150142144,15.10621557,207.01,206.99,0.72]
[1755150142444,15.10621557,207.01,207.0,0.72]
[1755150142754,41.10621557,207.05,207.0,0.72]
[1755150142951,41.10621557,207.05,206.97,36.36]
[1755150143274,41.10621557,207.05,207.01,0.72]
[1755150143471,87.3925074,207.1,206.96,0.72]
[1755150143472,15.10621557,206.99,206.96,0.72]
[1755150143642,15.10621557,206.99,206.97,37.08]
[1755150143846,15.10621557,206.99,206.98,0.72]
[1755150144774,0.66,207.07,206.98,0.72]
[1755150145071,15.10621557,207.0,206.99,69.4]
[1755150145257,15.10621557,207.0,206.99,70.12]
[1755150145888,15.10621557,207.06,206.99,70.12]
[1755150146163,15.10621557,207.09,207.0,0.72]
[1755150146370,15.10621557,207.07,207.0,0.72]
[1755150147044,24.56297244,207.11,207.0,0.72]
[1755150147264,15.10621557,207.11,207.0,0.72]
[1755150147453,15.10621557,207.07,207.0,0.72]
[1755150148368,0.66,207.13,207.0,0.72]
[1755150148369,15.10621557,207.12,207.0,0.72]
[1755150148550,15.10621557,207.08,207.0,0.72]
[1755150148947,15.10621557,207.12,207.0,26.72]
[1755150149163,15.10621557,207.12,207.01,0.72]
[1755150149363,15.10621557,207.1,207.01,0.72]
[1755150149878,15.10621557,207.11,207.01,0.72]
[1755150153851,25.22297244,207.11,207.01,0.72]
[1755150154461,0.66,207.1,207.01,0.72]
[1755150155179,0.66,207.1,207.02,69.4]
[1755150155384,0.66,207.1,206.98,26.0]
[1755150155385,26.0,207.01,206.88,0.72]
[1755150155585,0.66,207.1,206.82,12.51522807]
[1755150155586,0.66,207.0,206.92,34.7]
[1755150155774,41.10621557,206.99,206.98,0.03]
[1755150156263,41.76621557,206.99,206.98,0.03]
[1755150156973,41.10621557,206.99,206.98,0.03]
[1755150157975,0.66,207.02,206.98,0.03]
[1755150158253,15.10621557,207.01,206.98,0.03]
[1755150158563,15.10621557,207.04,206.99,0.72]
[1755150158753,15.10621557,207.04,206.98,0.03]
[1755150158754,41.10621557,207.07,207.0,37.06]
[1755150159066,15.10621557,207.07,207.0,37.06]
[1755150159454,24.56297244,207.01,206.98,0.03]
[1755150159659,15.76621557,207.0,206.99,36.34]
[1755150160160,15.10621557,207.0,206.99,36.34]
[1755150161385,15.76621557,207.0,206.99,36.34]
[1755150161753,25.22297244,207.0,206.99,36.34]
[1755150165069,25.22297244,207.0,206.99,105.78]
[1755150165869,15.76621557,207.0,206.99,105.78]
[1755150166958,15.10621557,207.0,206.99,105.78]
[1755150167375,15.76621557,207.0,206.99,105.78]
[1755150167988,25.22297244,207.0,206.99,105.78]
[1755150168289,15.10621557,207.0,206.99,105.78]
[1755150168863,15.76621557,207.0,206.99,105.78]
[1755150169264,25.22297244,207.0,206.99,69.44]
[1755150169484,25.22297244,207.0,206.99,105.78]
[1755150170083,28.74275253,207.0,206.99,105.78]
[1755150173583,33.6235681,207.0,206.99,105.78]
[1755150174094,24.16681123,207.0,206.99,105.78]
[1755150174278,33.6235681,207.0,206.99,105.78]
[1755150175984,30.10378801,207.0,206.99,105.78]
[1755150176197,33.62820181,207.0,206.99,105.78]
[1755150177186,24.17144494,207.0,206.99,105.78]
[1755150177995,33.62820181,207.0,206.99,105.78]
[1755150178387,41.10621557,206.97,206.96,0.03]
[1755150178568,54.74738624,206.97,206.96,71.07]
[1755150178768,15.10621557,206.96,206.94,0.03]
[1755150178976,28.74738624,206.95,206.94,0.03]
[1755150179388,36.05360148,206.95,206.94,0.03]
[1755150180076,41.10621557,206.93,206.92,0.03]
[1755150180295,28.74738624,206.93,206.92,0.03]
[1755150181094,28.75466995,206.93,206.92,0.03]
[1755150181393,28.75466995,206.93,206.92,36.35]
[1755150181694,54.75466995,206.93,206.92,36.35]
[1755150182006,28.75466995,206.93,206.92,36.35]
[1755150182297,41.10621557,206.89,206.82,0.66]
[1755150182603,24.56297244,206.84,206.82,0.66]
[1755150183309,24.56297244,206.85,206.83,0.66]
[1755150183474,3.52998352,206.84,206.83,0.66]
[1755150183675,3.52998352,206.84,206.83,36.98]
[1755150184409,41.10621557,206.81,206.77,0.66]
[1755150184696,15.10621557,206.79,206.78,36.32]
[1755150185000,15.10621557,206.8,206.78,105.8]
[1755150186287,28.08941803,206.79,206.78,69.48]
[1755150186490,28.08941803,206.79,206.78,105.8]
[1755150187489,18.63266116,206.79,206.78,105.8]
[1755150187695,18.63266116,206.79,206.78,106.46]
[1755150189692,18.63266116,206.79,206.78,105.8]
[1755150190802,24.87463616,206.79,206.78,105.8]
[1755150191209,18.63266116,206.79,206.78,105.8]
[1755150191386,24.87463616,206.79,206.78,105.8]
[1755150192977,18.63266116,206.79,206.78,106.46]
[1755150193519,26.11833202,206.93,206.78,106.46]
[1755150193520,6.241975,206.85,206.78,106.46]
[1755150193692,3.51431581,206.84,206.78,105.8]
[1755150194003,15.10621557,206.83,206.79,0.66]
[1755150194201,0.69,206.92,206.79,0.66]
[1755150194402,6.241975,206.88,206.79,0.66]
[1755150194702,24.61076432,206.86,206.79,0.66]
[1755150195020,13.01981835,206.85,206.8,36.32]
[1755150195309,41.10621557,206.82,206.81,36.98]
[1755150195478,41.10621557,206.82,206.81,36.32]
[1755150196099,41.10621557,206.82,206.79,0.66]
[1755150196100,41.10621557,206.79,206.78,69.48]
[1755150196412,50.61076432,206.79,206.78,105.8]
[1755150197006,41.10621557,206.79,206.78,106.46]
[1755150197493,15.10621557,206.79,206.78,106.46]
[1755150198078,15.10621557,206.79,206.78,71.72]
[1755150198884,41.10621557,206.79,206.78,34.74]
[1755150199084,15.10621557,206.77,206.76,0.03]
[1755150199282,24.61076432,206.77,206.76,36.33]
[1755150199482,0.69,206.87,206.76,36.99]
[1755150199700,15.10621557,206.83,206.77,0.66]
[1755150199904,26.0,206.84,206.77,0.66]
[1755150200105,26.0,206.83,206.77,0.66]
[1755150201189,15.10621557,206.82,206.77,0.66]
[1755150201395,15.10621557,206.82,206.78,36.96]
[1755150201589,15.10621557,206.82,206.78,36.3]
[1755150201787,15.10621557,206.82,206.79,0.66]
[1755150204032,15.10621557,206.79,206.78,36.3]
[1755150204194,28.82710564,206.79,206.78,36.3]
[1755150204399,19.32255689,206.79,206.78,36.3]
[1755150204901,19.32305923,206.79,206.78,36.3]
[1755150205106,19.32305923,206.79,206.78,105.82]
[1755150205935,28.82760798,206.79,206.78,105.82]
[1755150206300,18.63305923,206.79,206.78,105.82]
[1755150207110,28.82760798,206.79,206.78,105.82]
[1755150207704,28.13760798,206.79,206.78,105.82]
[1755150207989,28.1389597,206.79,206.78,105.82]
[1755150208214,28.8289597,206.79,206.78,105.82]
[1755150209398,28.1389597,206.79,206.78,105.82]
[1755150209805,18.63441095,206.79,206.78,105.82]
[1755150210219,19.33441095,206.79,206.78,105.82]
[1755150210399,19.33441095,206.79,206.76,0.03]
[1755150210400,28.8389597,206.79,206.76,0.03]
[1755150210590,10.0,206.83,206.76,0.03]
[1755150210591,41.10621557,206.77,206.76,0.03]
[1755150210816,54.8389597,206.77,206.76,71.07]
[1755150211142,54.83907928,206.77,206.76,71.07]
[1755150211727,54.13907928,206.77,206.76,71.07]
[1755150211918,18.63453053,206.77,206.76,71.07]
[1755150212300,44.63453053,206.77,206.76,71.07]
[1755150212530,18.63453053,206.77,206.76,71.07]
[1755150213620,18.63453053,206.77,206.76,34.79]
[1755150213830,19.33453053,206.77,206.76,71.07]
[1755150214005,28.13907928,206.77,206.76,71.07]
[1755150214206,28.83907928,206.77,206.76,71.07]
[1755150214419,28.83907928,206.77,206.76,34.79]
[1755150214624,54.83907928,206.77,206.76,71.07]
[1755150215041,28.83907928,206.77,206.76,71.07]
[1755150216315,54.83907928,206.77,206.76,71.07]
[1755150216514,28.83907928,206.77,206.76,71.07]
[1755150216846,25.58140103,206.77,206.76,71.07]
[1755150217219,15.10621557,206.75,206.74,0.03]
[1755150217532,25.58140103,206.75,206.74,34.79]
[1755150218132,51.58140103,206.75,206.74,34.79]
[1755150218457,51.58140103,206.75,206.74,71.07]
[1755150218615,54.85502989,206.75,206.74,71.07]
[1755150218938,28.85502989,206.75,206.74,71.07]
[1755150219613,28.85502989,206.75,206.71,0.03]
[1755150219614,51.10621557,206.74,206.71,0.03]
[1755150219813,41.10621557,206.68,206.6,0.68]
[1755150220017,15.10621557,206.62,206.61,71.04]
[1755150220526,15.10621557,206.62,206.61,71.72]
[1755150221038,41.10621557,206.62,206.61,71.72]
[1755150221232,41.10621557,206.62,206.55,0.68]
[1755150221233,25.32671493,206.62,206.55,0.68]
[1755150221423,35.52049936,206.64,206.56,71.72]
[1755150221734,26.0,206.62,206.57,36.96]
[1755150221935,9.52049936,206.65,206.58,0.68]
[1755150221936,15.10621557,206.65,206.58,0.68]
[1755150222128,24.62671493,206.63,206.58,0.68]
[1755150222326,15.10621557,206.61,206.59,0.68]
[1755150222736,15.10621557,206.61,206.47,26.0]
[1755150222737,15.10621557,206.57,206.53,0.68]
[1755150222932,15.10621557,206.57,206.54,36.96]
[1755150223240,24.62671493,206.57,206.54,36.96]
[1755150223741,15.10621557,206.57,206.54,36.96]
[1755150223943,24.62671493,206.57,206.54,36.96]
[1755150224249,9.52049936,206.56,206.54,36.28]
[1755150224442,15.10621557,206.57,206.36,209.5]
[1755150224443,41.10621557,206.54,206.45,0.68]
[1755150224751,50.62671493,206.54,206.49,0.68]
[1755150224954,9.52049936,206.52,206.5,34.78]
[1755150225267,9.52049936,206.52,206.51,36.28]
[1755150225468,13.04598976,206.52,206.51,36.28]
[1755150225763,13.74598976,206.52,206.5,69.56]
[1755150226006,15.80621557,206.52,206.51,36.28]
[1755150226242,15.10621557,206.51,206.5,69.56]
[1755150226415,18.62681753,206.51,206.5,105.84]
[1755150226616,19.32681753,206.51,206.5,105.84]
[1755150227228,28.84731689,206.51,206.5,34.78]
[1755150227419,13.74110132,206.51,206.5,34.78]
[1755150227934,13.74110132,206.51,206.3,10.0]
[1755150228241,15.10621557,206.38,206.31,70.24]
[1755150228552,26.0,206.35,206.32,36.96]
[1755150228717,15.80621557,206.48,206.33,0.68]
[1755150228918,24.62671493,206.41,206.33,0.68]
[1755150229141,15.10621557,206.39,206.33,0.68]
[1755150229514,0.7,206.49,206.33,0.68]
[1755150229741,24.62671493,206.42,206.33,0.68]
[1755150229935,15.10621557,206.42,206.33,0.68]
[1755150230124,0.7,206.51,206.33,0.68]
[1755150230330,15.10621557,206.48,206.33,0.68]
[1755150230551,9.52049936,206.5,206.33,0.68]
[1755150230755,15.10621557,206.49,206.33,0.68]
[1755150230938,24.62671493,206.49,206.33,10.68]
[1755150231141,24.62671493,206.49,206.34,0.68]
[1755150231142,15.10621557,206.49,206.34,0.68]
[1755150232439,24.62671493,206.51,206.34,0.68]
[1755150232644,15.10621557,206.49,206.34,0.68]
[1755150232851,24.62671493,206.49,206.34,0.68]
[1755150233535,15.10621557,206.47,206.34,0.68]
[1755150233740,9.52049936,206.5,206.36,26.0]
[1755150233941,15.10621557,206.48,206.37,36.98]
[1755150234154,15.10621557,206.48,206.38,0.68]
[1755150235052,15.10621557,206.44,206.39,34.8]
[1755150235364,15.10621557,206.44,206.4,0.68]
[1755150235667,41.10621557,206.47,206.4,0.68]
[1755150235855,15.10621557,206.43,206.39,34.8]
[1755150236058,26.0,206.41,206.4,36.3]
[1755150236366,41.10621557,206.41,206.4,36.3]
[1755150238664,14.507823,206.44,206.4,36.98]
[1755150238865,15.10621557,206.43,206.4,36.3]
[1755150239058,15.80621557,206.43,206.4,36.3]
[1755150239457,26.0,206.41,206.4,36.3]
[1755150239951,41.10621557,206.4,206.35,0.03]
[1755150240158,41.10621557,206.4,206.36,36.98]
[1755150240360,41.10621557,206.4,206.37,0.67]
[1755150240861,41.10621557,206.4,206.36,36.3]
[1755150241247,41.10621557,206.4,206.37,0.03]
[1755150241450,15.10621557,206.38,206.37,0.03]
[1755150241848,10.22049936,206.38,206.37,0.03]
[1755150242055,51.32671493,206.38,206.37,36.33]
[1755150242252,25.32671493,206.38,206.37,36.33]
[1755150242461,28.81143038,206.38,206.37,36.33]
[1755150242954,28.81119172,206.38,206.37,36.33]
[1755150243356,0.7,206.42,206.37,36.33]
[1755150243664,26.0,206.39,206.37,36.33]
[1755150244271,41.10621557,206.38,206.37,36.33]
[1755150244898,26.0,206.39,206.37,36.33]
[1755150245050,41.10621557,206.39,206.38,34.82]
[1755150245679,41.10621557,206.39,206.38,71.14]
[1755150245992,41.80621557,206.39,206.38,34.82]
[1755150246148,54.80966885,206.39,206.38,34.82]
[1755150246349,54.80966885,206.39,206.38,71.14]
[1755150246659,15.10621557,206.38,206.37,34.85]
[1755150246864,44.58916949,206.38,206.37,69.67]
[1755150247070,51.32671493,206.38,206.37,69.67]
[1755150247276,28.80933747,206.38,206.37,69.67]
[1755150247578,41.10621557,206.33,206.25,0.67]
[1755150247756,50.62671493,206.33,206.26,36.32]
[1755150248073,79.1,206.37,206.27,0.67]
[1755150248374,15.10621557,206.39,206.27,0.67]
[1755150248547,3.48399949,206.38,206.27,0.67]
[1755150248746,15.10621557,206.39,206.27,0.67]
[1755150248747,3.48415216,206.37,206.27,0.67]
[1755150248973,15.10621557,206.35,206.27,0.67]
[1755150250464,3.48471184,206.34,206.27,0.67]
[1755150250675,15.10621557,206.35,206.27,0.67]
[1755150250876,3.48470934,206.34,206.27,0.67]
[1755150251052,15.10621557,206.35,206.18,14.51414]
[1755150251053,15.10621557,206.31,206.18,14.51414]
[1755150251258,15.10621557,206.31,206.24,0.67]
[1755150251457,3.48348814,206.3,206.24,0.67]
[1755150251687,15.10621557,206.31,206.24,0.67]
[1755150251859,3.48336456,206.3,206.24,0.67]
[1755150252063,15.10621557,206.31,206.24,0.67]
[1755150252260,3.4833184,206.3,206.24,0.67]
[1755150252471,15.10621557,206.31,206.24,0.67]
[1755150252669,3.48366849,206.3,206.24,0.67]
[1755150252872,15.10621557,206.31,206.24,0.67]
[1755150253181,3.48390212,206.3,206.24,0.67]
[1755150253385,15.10621557,206.31,206.24,0.67]
[1755150253386,3.48628415,206.29,206.24,0.67]
[1755150253575,15.10621557,206.31,206.24,0.67]
[1755150253884,3.48629272,206.3,206.24,0.67]
[1755150254084,3.48629272,206.29,206.24,0.67]
[1755150254280,0.7,206.29,206.21,0.67]